bitfinex/quotes_ETHUSD_20220218
["timestamp","ask_amount","ask_price","bid_price","bid_amount"]
[1645228016911,0.95997575,2789.1,2788.7,1.79363]
[1645228019245,0.95997575,2789.1,2788.8,1.52317132]
[1645228019744,0.95997575,2789.1,2788.8,0.89684]
[1645228020349,0.00208704,2789.4,2788.9,5.02303855]
[1645228020549,0.91071878,2789.8,2789.0,1.52303855]
[1645228020751,4.55197817,2790.1,2789.1,3.5]
[1645228020752,0.00208707,2789.4,2789.1,3.5]
[1645228020948,0.00208707,2789.4,2789.2,1.52303855]
[1645228021548,1.17245021,2789.4,2789.2,1.52303855]
[1645228021749,1.17036314,2789.4,2789.2,1.52303855]
[1645228021950,1.17245037,2789.4,2789.2,1.52303855]
[1645228022349,1.17245037,2789.4,2788.9,1.1873]
[1645228022548,1.17245037,2789.4,2789.0,1.52294822]
[1645228022747,1.17245037,2789.4,2788.7,3.5]
[1645228022748,1.17245037,2789.4,2789.1,1.52294822]
[1645228023004,1.17036314,2789.4,2789.2,1.52294822]
[1645228023203,1.17245035,2789.4,2789.1,0.89676]
[1645228023408,1.17245035,2789.4,2789.2,1.52296742]
[1645228023602,1.17245035,2789.4,2789.1,0.89676]
[1645228024103,1.17036314,2789.4,2789.1,0.89676]
[1645228024308,1.17245037,2789.4,2789.1,0.89676]
[1645228025405,1.17036314,2789.4,2789.1,0.89676]
[1645228025605,1.17245037,2789.4,2789.1,0.89676]
[1645228026206,1.17245037,2789.4,2788.9,0.8968]
[1645228026406,1.17245037,2789.4,2789.0,1.52300998]
[1645228026646,1.17036314,2789.4,2789.0,1.52300998]
[1645228026845,1.17245031,2789.4,2789.0,1.52300998]
[1645228027448,2.08316909,2789.4,2789.0,1.52300998]
[1645228027650,2.08108192,2789.4,2789.0,1.52300998]
[1645228028046,1.17245034,2789.4,2789.0,1.52300998]
[1645228028653,2.08316912,2789.4,2789.0,1.52300998]
[1645228028852,2.08108192,2789.4,2789.0,1.52300998]
[1645228029250,2.08316912,2789.4,2789.0,1.52300998]
[1645228030053,2.08108192,2789.4,2788.9,1.52300998]
[1645228030252,2.08108192,2789.4,2788.7,1.1616]
[1645228030497,2.08316912,2789.4,2788.8,1.52307859]
[1645228031202,2.98010912,2789.4,2788.8,1.52307859]
[1645228031402,2.97802192,2789.4,2788.8,1.52307859]
[1645228031699,2.08316907,2789.4,2788.8,5.02307859]
[1645228031898,1.17245029,2789.4,2788.9,1.52307859]
[1645228032096,1.17245029,2789.4,2789.0,3.5]
[1645228032299,0.00208715,2789.4,2789.1,1.52307859]
[1645228032501,0.91071878,2790.0,2789.2,3.5]
[1645228032702,0.91071878,2790.2,2789.3,1.52307859]
[1645228032900,0.91071878,2790.2,2789.4,3.5]
[1645228033099,0.0083477,2789.8,2789.5,2.01310859]
[1645228033300,0.0083477,2789.8,2789.6,1.52307859]
[1645228033599,0.0083477,2789.8,2789.5,3.31585229]
[1645228033809,0.86175722,2790.1,2789.6,1.52307859]
[1645228034000,0.00208715,2789.8,2789.6,1.52307859]
[1645228034445,0.00208715,2789.8,2789.5,0.89636]
[1645228034844,0.86175722,2790.1,2789.5,0.89636]
[1645228035047,0.86175722,2790.1,2789.6,1.52265424]
[1645228035245,0.86175722,2790.1,2789.5,0.89636]
[1645228035246,0.00208873,2789.8,2789.5,0.89636]
[1645228035645,0.00208873,2789.8,2789.6,1.52264223]
[1645228036049,0.86175722,2790.1,2789.7,3.5]
[1645228036449,0.00208872,2789.8,2789.7,3.5]
[1645228036848,0.00208872,2789.8,2789.7,5.02258538]
[1645228037046,0.00208872,2789.8,2789.7,5.02258492]
[1645228037246,0.91071878,2790.4,2789.7,3.5]
[1645228037447,0.91071878,2790.5,2789.7,3.5]
[1645228037648,0.00208871,2789.9,2789.8,0.89641]
[1645228038497,1.15905011,2790.3,2789.8,0.89641]
[1645228038900,0.00208701,2790.0,2789.8,0.89641]
[1645228039298,1.11113712,2790.3,2789.8,0.89641]
[1645228042449,0.0024117,2790.2,2789.8,0.89641]
[1645228043346,1.11113712,2790.3,2789.8,0.89641]
[1645228043547,0.00241171,2790.1,2789.8,0.89641]
[1645228044451,1.11113712,2790.3,2789.8,0.89641]
[1645228044850,0.00241168,2790.1,2789.8,0.89641]
[1645228045249,0.00241168,2790.1,2789.9,5.29271]
[1645228045536,0.00241168,2790.1,2790.0,3.5]
[1645228045739,0.91071878,2790.7,2790.0,3.5]
[1645228045937,0.00241171,2790.1,2790.0,4.39625]
[1645228046535,0.00241171,2790.1,2789.9,2.92391064]
[1645228046736,0.00241171,2790.1,2789.9,1.79271]
[1645228046943,0.91021121,2790.5,2789.9,1.79271]
[1645228047138,0.00241171,2790.1,2789.8,5.29275]
[1645228047538,0.00241171,2790.1,2789.8,1.79275]
[1645228048138,1.80678121,2790.5,2789.8,5.29275]
[1645228048340,0.00241168,2790.1,2789.8,1.79275]
[1645228048939,0.00241168,2790.1,2789.8,5.29275]
[1645228049347,1.80678121,2790.5,2789.8,5.29275]
[1645228049552,0.00241168,2790.1,2789.8,5.29275]
[1645228050551,1.80678121,2790.5,2789.8,5.29275]
[1645228050749,0.00241168,2790.1,2789.8,1.79275]
[1645228050952,0.00241168,2790.1,2789.8,5.29275]
[1645228051151,0.00241168,2790.1,2789.8,1.79275]
[1645228051354,0.00241168,2790.1,2789.8,5.29275]
[1645228051750,0.00531315,2790.8,2789.8,5.29275]
[1645228051954,1.10791908,2790.7,2790.1,0.8962193]
[1645228052158,0.00964544,2790.5,2790.1,0.8962193]
[1645228052757,0.00964544,2790.5,2790.1,5.2924393]
[1645228053027,0.00531315,2790.8,2790.2,1.79244]
[1645228053220,0.00241164,2790.4,2790.3,4.3960137]
[1645228053420,0.00241164,2790.4,2790.3,3.5]
[1645228053821,19.2433248,2790.6,2790.4,2.50287629]
[1645228054020,19.2433248,2790.6,2790.5,3.5]
[1645228054223,19.2433248,2790.6,2790.5,1.16517803]
[1645228054824,19.2433248,2790.6,2790.4,0.89889879]
[1645228055021,19.2433248,2790.6,2790.4,0.00287629]
[1645228056221,19.2433248,2790.6,2790.5,1.14651834]
[1645228058259,19.2433248,2790.6,2790.4,0.89902819]
[1645228058456,19.2433248,2790.6,2790.4,0.00287629]
[1645228059257,19.2457364,2790.6,2790.4,0.00287629]
[1645228059457,0.0024116,2790.6,2790.4,0.00287629]
[1645228059960,1.00064782,2790.9,2790.4,0.00287629]
[1645228060407,0.0024116,2790.6,2790.4,0.00287629]
[1645228061001,0.01631771,2790.4,2790.3,1.79201]
[1645228061603,0.01631771,2790.4,2790.3,2.63154237]
[1645228062807,0.01631771,2790.4,2790.3,1.79201]
[1645228063810,0.01631771,2790.4,2790.3,2.96223343]
[1645228064850,0.00241142,2790.7,2790.3,2.96223343]
[1645228065050,1.17392284,2791.1,2790.3,2.96223343]
[1645228065253,0.00241142,2790.7,2790.3,2.96223343]
[1645228066255,20.16585566,2791.1,2790.3,2.96223343]
[1645228066454,0.00241151,2790.7,2790.3,2.96223343]
[1645228066855,0.00241151,2790.7,2790.3,1.79201]
[1645228067557,20.16585566,2791.1,2790.3,1.79201]
[1645228067558,21.07657444,2791.1,2790.3,1.79201]
[1645228067762,21.07657444,2791.1,2789.9,5.88093]
[1645228067763,0.00241151,2790.7,2789.9,5.88093]
[1645228068017,1.13138638,2790.4,2789.9,5.88093]
[1645228068209,0.89890151,2790.7,2789.9,1.79283]
[1645228068410,0.00241151,2790.7,2789.9,1.79283]
[1645228068609,1.1381,2790.9,2789.9,1.79283]
[1645228068810,0.00241139,2790.7,2789.9,1.79283]
[1645228069411,0.98407095,2790.7,2789.9,1.79283]
[1645228069809,0.98165956,2790.7,2789.9,1.79283]
[1645228070009,0.98407095,2790.7,2789.9,1.79283]
[1645228070811,0.00241139,2790.7,2789.9,1.79283]
[1645228071012,19.433531,2791.1,2790.0,1.52225599]
[1645228071213,0.00241139,2790.7,2790.2,0.89617]
[1645228072045,0.00241139,2790.7,2790.3,1.13677837]
[1645228072349,0.91736826,2791.0,2790.3,1.13677837]
[1645228072350,0.91736826,2791.0,2790.3,2.03309837]
[1645228072545,0.00241148,2790.7,2790.3,0.89632]
[1645228073348,0.91736826,2791.0,2790.3,0.89632]
[1645228073849,0.00241151,2790.7,2790.3,0.89632]
[1645228074549,0.91736826,2791.0,2790.3,0.89632]
[1645228074950,0.00241151,2790.7,2790.3,0.89632]
[1645228075403,0.00241151,2790.7,2790.3,1.7924701]
[1645228075609,0.00241151,2790.7,2790.4,1.79223]
[1645228075806,0.91071878,2791.4,2790.4,1.79223]
[1645228076205,0.00241151,2790.7,2790.4,1.79223]
[1645228077008,0.91071878,2791.3,2790.4,1.79223]
[1645228077208,0.00241155,2790.7,2790.4,1.79223]
[1645228078211,19.433531,2791.0,2790.4,1.79223]
[1645228078408,0.00241155,2790.7,2790.4,1.79223]
[1645228078607,0.00241155,2790.7,2790.4,5.29223]
[1645228079449,18.99193282,2791.0,2790.4,5.29223]
[1645228079651,0.00241155,2790.7,2790.4,5.29223]
[1645228079852,0.00241155,2790.7,2790.4,6.188363]
[1645228080653,18.99193282,2791.0,2790.7,0.98774992]
[1645228080859,18.99193282,2791.0,2790.7,1.88387992]
[1645228082053,18.99434434,2791.0,2790.7,1.88387992]
[1645228082252,18.99434434,2791.0,2790.8,3.5]
[1645228082652,18.99434434,2791.0,2790.8,3.99003]
[1645228082906,17.37101825,2791.0,2790.9,5.02186821]
[1645228083109,17.36860673,2791.0,2790.9,6.81357821]
[1645228083308,11.99637824,2791.0,2790.9,6.81357821]
[1645228083511,11.47878498,2791.0,2790.9,6.81357821]
[1645228083708,11.47878498,2791.0,2790.9,8.60528261]
[1645228084107,11.47637347,2791.0,2790.9,8.60528261]
[1645228084309,0.91071878,2792.0,2791.0,0.89586]
[1645228084508,0.91071878,2792.0,2791.2,1.79168]
[1645228084708,0.91071878,2792.0,2791.3,3.483683]
[1645228085009,0.91071878,2792.0,2791.2,2.6875665]
[1645228085209,0.91071878,2792.1,2791.2,1.7917265]
[1645228085711,0.00240804,2791.7,2791.4,0.89585]
[1645228086113,0.00240804,2791.7,2791.2,1.98953958]
[1645228086510,0.91071878,2791.9,2791.2,1.98953958]
[1645228086946,0.00240807,2791.6,2791.2,1.98953958]
[1645228087346,0.00240807,2791.6,2791.2,0.89584]
[1645228087746,0.89605,2792.0,2791.2,0.89584]
[1645228087947,0.00240808,2791.5,2791.2,0.89584]
[1645228088546,0.00240808,2791.5,2791.3,1.07874247]
[1645228088946,1.9758435,2792.0,2791.3,1.07874247]
[1645228089145,0.00240808,2791.5,2791.3,1.07874247]
[1645228089945,0.00240808,2791.5,2791.3,4.57874247]
[1645228090145,1.0797935,2792.0,2791.3,1.07874247]
[1645228090396,0.00240808,2791.5,2791.4,0.89595]
[1645228090603,0.00240808,2791.5,2791.3,1.07874247]
[1645228091404,0.00528659,2791.9,2791.3,1.07874247]
[1645228091600,0.00240808,2791.5,2791.3,1.07874247]
[1645228092599,0.00528659,2791.9,2791.3,1.07874247]
[1645228092802,0.00240808,2791.5,2791.3,1.07874247]
[1645228093407,0.00240808,2791.5,2791.4,3.5]
[1645228093408,8.08e-06,2791.5,2791.4,3.5]
[1645228093602,8.08e-06,2791.5,2791.4,14.51]
[1645228093803,0.00528659,2792.1,2791.4,14.6891]
[1645228094008,0.00528659,2792.1,2791.5,11.1889]
[1645228094251,0.00528659,2792.1,2791.5,11.01]
[1645228094452,0.00528659,2792.1,2791.6,0.1789]
[1645228094653,0.00528659,2792.1,2791.9,0.85052112]
[1645228094851,13.66313821,2792.2,2791.9,0.85052112]
[1645228095651,13.66313821,2792.2,2791.9,1.74610112]
[1645228096560,13.66313821,2792.2,2791.9,2.64167742]
[1645228096753,13.66313821,2792.2,2791.9,3.53727742]
[1645228096952,13.66313821,2792.2,2791.9,2.64167742]
[1645228097555,13.66313821,2792.2,2792.0,2.2371014]
[1645228097754,0.00240793,2792.2,2792.0,0.89559]
[1645228098014,0.00528659,2792.5,2792.2,2.5]
[1645228098207,0.00963029,2792.6,2792.3,11.01]
[1645228098405,0.00963029,2792.6,2792.2,0.8954365]
[1645228098605,0.00528659,2792.9,2792.4,0.87362774]
[1645228098807,0.95443557,2793.2,2792.4,0.87362774]
[1645228099007,0.90708308,2793.0,2792.4,0.87362774]
[1645228099210,0.04735249,2793.2,2792.4,0.87362774]
[1645228099211,0.91236967,2792.9,2792.4,0.87362774]
[1645228099409,0.90708308,2793.0,2792.4,0.87362774]
[1645228099608,0.00528659,2792.9,2792.4,0.87362774]
[1645228099906,0.90708308,2793.1,2792.4,0.87362774]
[1645228100111,0.00528659,2793.0,2792.5,1.79093]
[1645228100307,0.95443557,2793.2,2792.5,1.79093]
[1645228100507,0.90708308,2793.1,2792.5,1.79093]
[1645228100709,0.00528659,2793.0,2792.5,1.79093]
[1645228102248,0.95443557,2793.2,2792.5,1.79093]
[1645228102546,0.00240778,2792.9,2792.5,1.79093]
[1645228103350,0.04735249,2793.2,2792.5,1.79093]
[1645228103751,0.00240779,2792.8,2792.5,1.79093]
[1645228104251,0.00240779,2792.8,2792.5,2.28096]
[1645228104652,13.70943214,2793.2,2792.5,2.28096]
[1645228104851,0.0024078,2792.8,2792.5,2.28096]
[1645228105251,13.7075813,2793.2,2792.5,2.28096]
[1645228105502,13.7075813,2793.2,2792.5,1.79093]
[1645228105503,14.61466438,2793.2,2792.5,1.79093]
[1645228105901,0.90708308,2793.0,2792.5,1.79093]
[1645228106599,14.56892302,2793.2,2792.5,1.79093]
[1645228107006,1.07050324,2792.8,2792.5,1.79093]
[1645228108002,0.00178492,2793.0,2792.5,1.79093]
[1645228108203,0.90708308,2793.1,2792.5,1.79093]
[1645228108501,0.00178482,2792.9,2792.5,1.79093]
[1645228109253,0.98244372,2792.9,2792.5,1.79093]
[1645228109454,0.9806589,2792.9,2792.5,1.79093]
[1645228109663,0.9830666,2792.9,2792.5,1.79093]
[1645228110055,0.0024077,2792.9,2792.5,1.79093]
[1645228110557,0.91044924,2793.4,2792.5,1.79093]
[1645228110756,0.00336616,2793.4,2792.5,2.96423]
[1645228110955,0.0024077,2792.9,2792.5,2.96423]
[1645228111764,0.8992218,2793.3,2792.5,2.96423]
[1645228111765,0.85348065,2793.3,2792.5,2.96423]
[1645228112160,0.0024077,2792.9,2792.5,2.96423]
[1645228113011,1.0247899,2792.8,2792.5,2.96423]
[1645228113304,1.0247899,2792.8,2792.5,2.6864141]
[1645228113604,0.90708308,2793.3,2792.5,2.6864141]
[1645228113805,0.91044924,2793.4,2792.6,0.89546]
[1645228114204,0.90708308,2793.2,2792.6,0.89546]
[1645228115707,0.89731803,2793.0,2792.6,0.89546]
[1645228116769,0.89495494,2793.0,2792.6,0.89546]
[1645228116971,0.00236311,2792.9,2792.6,0.89546]
[1645228117870,0.89495494,2793.0,2792.6,0.89546]
[1645228118069,0.00236308,2792.9,2792.6,0.89546]
[1645228118270,0.00236308,2792.9,2792.6,1.7908999]
[1645228119072,0.90708308,2793.2,2792.6,1.7908999]
[1645228119273,0.00236308,2792.9,2792.6,1.7908999]
[1645228120080,0.00236308,2792.9,2792.6,0.89546]
[1645228120274,1.12018182,2793.1,2792.6,0.89546]
[1645228120498,0.00227317,2792.9,2792.6,0.89546]
[1645228121500,1.12018182,2793.1,2792.6,0.89546]
[1645228121699,0.00227317,2792.9,2792.6,0.89546]
[1645228122610,2.0272649,2793.1,2792.6,0.89546]
[1645228122905,0.00227317,2792.9,2792.6,0.89546]
[1645228123304,0.00227317,2792.9,2792.6,1.7909003]
[1645228123803,0.90708308,2793.2,2792.6,5.7809303]
[1645228124006,0.90708308,2793.3,2792.6,5.2909003]
[1645228124255,0.0022934,2792.9,2792.6,5.2909003]
[1645228124451,0.0022934,2792.9,2792.6,1.7909003]
[1645228124850,0.0022934,2792.9,2792.7,0.89537]
[1645228125050,13.66190968,2793.1,2792.7,2.68606]
[1645228125255,0.0022934,2792.9,2792.8,2.0753479]
[1645228126252,13.66190968,2793.1,2792.9,1.79084]
[1645228126457,0.00229342,2793.0,2792.9,1.79084]
[1645228127055,0.00229342,2793.0,2792.8,1.1799841]
[1645228127453,13.66190968,2793.1,2792.8,1.1799841]
[1645228127654,0.00228886,2793.0,2792.7,0.89535]
[1645228128518,14.52128162,2793.1,2792.7,0.89535]
[1645228128819,0.00228887,2793.0,2792.7,0.89535]
[1645228129420,0.00228887,2793.0,2792.6,1.0011634]
[1645228129619,0.00228887,2793.0,2792.6,1.8967234]
[1645228129821,0.90708308,2793.1,2792.6,0.89556]
[1645228130119,0.90708308,2793.0,2792.5,1.2385]
[1645228130323,0.90708308,2793.1,2792.5,1.2385]
[1645228130721,0.90708308,2793.2,2792.6,0.89556]
[1645228131121,0.90708308,2793.2,2792.6,2.76472493]
[1645228131421,0.90937289,2793.1,2792.6,2.76472493]
[1645228131673,0.00228981,2793.1,2792.6,2.76472493]
[1645228131873,0.00228981,2793.1,2792.6,1.7909896]
[1645228132275,0.90708308,2793.2,2792.6,1.7909896]
[1645228132472,0.00228977,2793.1,2792.6,1.7909896]
[1645228132874,0.00228977,2793.1,2792.6,0.89556]
[1645228133078,0.00228977,2793.1,2792.6,1.77642923]
[1645228133375,0.90937285,2793.1,2792.6,1.77642923]
[1645228133574,0.90708308,2793.1,2792.6,1.77642923]
[1645228133876,0.90937285,2793.1,2792.6,1.77642923]
[1645228134073,0.90937285,2793.1,2792.6,5.27642923]
[1645228134278,0.90937285,2793.1,2792.6,1.77642923]
[1645228134877,0.90937224,2793.1,2792.6,5.27642923]
[1645228135078,0.00228916,2793.1,2792.6,1.77642923]
[1645228135275,0.00228916,2793.1,2792.6,0.89556]
[1645228135901,0.91234323,2793.3,2792.6,0.89556]
[1645228136301,0.90708308,2793.2,2792.6,0.89556]
[1645228136501,0.00526015,2793.1,2792.6,0.89556]
[1645228137105,1.0581792,2792.9,2792.6,0.89556]
[1645228138505,0.00526015,2793.0,2792.6,0.89556]
[1645228139777,0.00526015,2793.0,2792.6,4.39556]
[1645228140364,0.00236712,2793.1,2792.6,4.39556]
[1645228140664,0.00526015,2793.1,2792.6,4.39556]
[1645228140864,0.0076273,2793.1,2792.6,4.39556]
[1645228141261,0.0076273,2793.1,2792.6,5.29095]
[1645228141467,1.069102,2793.1,2792.7,1.7908712]
[1645228141663,0.90708308,2793.0,2792.7,0.89546]
[1645228142065,0.91234323,2793.0,2792.7,0.89546]
[1645228143912,0.90708308,2792.9,2792.7,0.89546]
[1645228144114,0.91234323,2793.0,2792.7,0.89546]
[1645228144314,0.90708308,2793.0,2792.7,0.89546]
[1645228145114,1.97608559,2793.1,2792.7,0.89546]
[1645228145316,1.97082544,2793.1,2792.7,0.89546]
[1645228145616,1.96855778,2793.1,2792.7,0.89546]
[1645228145815,1.97084788,2793.1,2792.7,0.89546]
[1645228146761,1.96855778,2793.1,2792.7,0.89546]
[1645228146960,1.97084788,2793.1,2792.7,0.89546]
[1645228148361,0.90937318,2793.1,2792.7,4.39546]
[1645228148561,0.90937318,2793.1,2792.7,0.89546]
[1645228148960,0.90708308,2793.0,2792.7,0.89546]
[1645228149161,0.91234323,2793.0,2792.7,0.89546]
[1645228149365,0.90708308,2793.0,2792.7,0.89546]
[1645228149862,0.91234323,2793.0,2792.7,0.89546]
[1645228150711,0.00526015,2793.0,2792.7,0.89546]
[1645228150905,0.90708308,2793.0,2792.7,0.89546]
[1645228151106,0.00526015,2793.0,2792.7,0.89546]
[1645228151312,1.9450335,2793.1,2792.7,0.89546]
[1645228151506,0.90708308,2793.0,2792.7,0.89546]
[1645228151707,0.91234323,2793.0,2792.7,0.89546]
[1645228152208,0.91234323,2793.0,2792.7,0.89406428]
[1645228153410,0.00526015,2793.0,2792.7,0.89406428]
[1645228153608,0.90936924,2793.1,2792.7,0.89406428]
[1645228153811,0.00526015,2793.0,2792.7,0.89406428]
[1645228154012,0.90708308,2793.1,2792.7,0.89406428]
[1645228154261,0.00526015,2793.0,2792.7,0.89406428]
[1645228154864,0.90936928,2793.1,2792.7,0.89406428]
[1645228155061,0.00526015,2793.0,2792.7,0.89406428]
[1645228155260,0.90708308,2793.1,2792.7,0.89406428]
[1645228155462,0.00526015,2793.0,2792.7,0.89406428]
[1645228155673,0.90936924,2793.1,2792.7,0.89406428]
[1645228155863,0.00526015,2793.0,2792.7,0.89406428]
[1645228156062,0.90936924,2793.1,2792.7,0.89406428]
[1645228156264,0.91234323,2793.0,2792.7,0.89406428]
[1645228156470,0.90708308,2793.0,2792.7,0.89406428]
[1645228156667,1.37133832,2793.2,2792.6,0.89556]
[1645228156668,0.99437555,2792.8,2792.6,0.89556]
[1645228156874,0.99437555,2792.8,2792.1,0.1789]
[1645228156875,2.36045372,2792.8,2792.1,0.1789]
[1645228157070,2.36045372,2792.8,2791.6,0.00170505]
[1645228157071,0.9107695,2792.4,2791.6,0.00170505]
[1645228157369,1.2996357,2792.8,2791.6,0.00170505]
[1645228157370,0.9107695,2792.2,2791.6,0.00170505]
[1645228157569,1.5107695,2792.3,2791.2,1.5215627]
[1645228157765,1.05004844,2791.5,2791.2,1.5215627]
[1645228158218,1.2107695,2792.0,2791.2,1.5215627]
[1645228158618,2.2107695,2792.0,2791.2,1.5215627]
[1645228158918,2.2107695,2792.0,2791.5,0.00170516]
[1645228159322,1.11083265,2791.9,2791.5,0.00170516]
[1645228159520,1.58973265,2791.9,2791.5,0.00170516]
[1645228159719,2.50050215,2791.9,2791.5,0.00170516]
[1645228159918,2.50050215,2791.9,2790.6,1.52177806]
[1645228159919,2.58973265,2791.9,2790.6,1.52177806]
[1645228160123,0.89614,2791.8,2790.6,1.52177806]
[1645228160321,1.79255,2791.7,2791.6,0.00170955]
[1645228160520,0.8962723,2791.7,2791.6,0.00170955]
[1645228160721,0.89614,2791.8,2791.6,0.00170955]
[1645228160919,1.89614,2791.8,2791.6,0.00170955]
[1645228161120,1.79253,2791.7,2790.7,1.52177806]
[1645228161325,1.79253,2791.7,2791.6,0.00170955]
[1645228161519,3.09253,2791.7,2791.6,0.00170955]
[1645228161758,3.98872,2791.7,2791.6,0.00170955]
[1645228161953,3.09253,2791.7,2791.6,0.00170955]
[1645228162353,3.09253,2791.7,2790.8,1.52189887]
[1645228162553,0.8962,2791.6,2791.5,0.00170958]
[1645228162753,1.4962,2791.6,2791.5,0.00170958]
[1645228162953,2.4962,2791.6,2791.5,0.00170958]
[1645228163353,3.39241,2791.6,2791.5,0.00170958]
[1645228163553,3.39241,2791.6,2790.7,0.89619]
[1645228163755,1.09866534,2791.1,2790.7,0.89619]
[1645228164752,3.39241,2791.6,2790.7,0.89619]
[1645228164956,1.6,2791.6,2790.8,0.00170478]
[1645228165254,0.89614,2791.8,2790.8,0.89783478]
[1645228165255,1.3,2791.8,2790.8,0.89783478]
[1645228165506,0.3,2791.8,2790.8,0.89783478]
[1645228165906,0.3,2791.9,2791.1,0.90597643]
[1645228166105,0.25,2792.0,2791.2,0.00170453]
[1645228167106,0.25,2792.0,2791.1,0.90597643]
[1645228167306,0.86042807,2791.7,2791.2,0.89598]
[1645228167508,0.86042807,2791.7,2791.5,0.00170553]
[1645228167708,1.16042807,2791.7,2791.5,0.00170553]
[1645228167907,0.86042807,2791.7,2791.5,0.00170553]
[1645228168308,1.46042807,2791.7,2790.7,1.79224]
[1645228168708,2.35667707,2791.7,2791.5,0.00170553]
[1645228168910,1.59861617,2791.6,2791.5,0.00170553]
[1645228169359,2.59861617,2791.6,2791.5,0.00170553]
[1645228169562,2.59861617,2791.6,2790.5,6.06871387]
[1645228169563,0.89887631,2791.0,2790.5,6.06871387]
[1645228169860,1.54861617,2791.0,2790.5,1.04674821]
[1645228170068,1.59861617,2791.0,2790.5,4.54674821]
[1645228170260,1.59861617,2791.0,2790.6,1.52191112]
[1645228170459,1.59861617,2791.0,2790.9,0.8960098]
[1645228170460,1.5505922,2791.0,2790.9,0.8960098]
[1645228170660,1.2303,2791.7,2791.0,0.07273962]
[1645228170863,1.5505922,2791.7,2791.5,1.11609141]
[1645228171062,1.5505922,2791.7,2791.0,0.07273962]
[1645228171663,1.5505922,2791.7,2791.0,0.96865962]
[1645228171865,1.5505922,2791.7,2791.1,3.5]
[1645228172168,1.5505922,2791.9,2791.2,0.00170542]
[1645228172363,1.5505922,2791.9,2791.4,1.79181]
[1645228172364,0.87934907,2791.5,2791.4,1.79181]
[1645228172565,0.87934907,2791.5,2791.2,0.00170542]
[1645228173220,2.12710796,2791.5,2791.0,0.07273962]
[1645228173419,2.12710796,2791.5,2791.2,0.00170542]
[1645228174421,2.12710796,2791.5,2791.0,0.07273962]
[1645228174623,2.12710796,2791.5,2791.2,0.00170548]
[1645228175625,2.12710796,2791.5,2791.0,0.07273962]
[1645228175829,2.12710796,2791.5,2791.2,0.00170548]
[1645228176023,2.42710796,2791.5,2791.2,0.00170548]
[1645228176423,3.72710796,2791.5,2791.2,0.00170548]
[1645228176654,3.72710796,2791.5,2791.0,0.07273962]
[1645228177055,3.72710796,2791.5,2791.2,0.00170548]
[1645228177858,3.72710796,2791.5,2791.0,0.07273962]
[1645228178257,0.89670884,2791.4,2791.2,0.00170547]
[1645228179057,0.89670884,2791.4,2791.0,0.07273962]
[1645228179459,0.89670884,2791.4,2791.2,0.0017055]
[1645228180412,0.89670884,2791.4,2791.0,0.07273962]
[1645228180613,0.89670884,2791.4,2791.2,0.0017055]
[1645228181613,0.89670884,2791.4,2791.0,0.07273962]
[1645228181812,0.89670884,2791.4,2791.2,0.0017055]
[1645228182913,1.89670884,2791.4,2791.2,0.0017055]
[1645228183114,0.87292451,2791.3,2791.2,0.0017055]
[1645228183915,0.87292451,2791.3,2791.0,0.07273962]
[1645228184178,0.87292451,2791.3,2791.1,0.00170553]
[1645228184366,2.06921451,2791.3,2791.1,5.53e-06]
[1645228184567,2.06921451,2791.3,2791.0,0.07273962]
[1645228184568,5.86283511,2791.2,2791.0,0.06301882]
[1645228184768,5.86283511,2791.2,2789.9,3.6791]
[1645228184769,2.5,2791.0,2789.9,3.6791]
[1645228184965,0.87931296,2790.0,2789.8,0.1791]
[1645228185170,1.74214807,2790.0,2789.9,1.52223381]
[1645228185568,1.74214807,2790.0,2789.7,3.6792]
[1645228185765,1.74214807,2790.0,2789.8,1.52222989]
[1645228186267,1.74214807,2790.0,2789.8,3.31506989]
[1645228186466,1.74214807,2790.0,2789.7,3.6792]
[1645228186667,1.74214807,2790.0,2789.8,1.52225311]
[1645228187568,1.74214807,2790.0,2789.5,5.47218]
[1645228187774,1.74214807,2790.0,2789.5,1.97218]
[1645228188021,1.74214807,2790.0,2789.2,0.1792]
[1645228188022,2.04214807,2790.0,2789.2,0.1792]
[1645228188213,0.83316347,2789.9,2788.9,5.0557]
[1645228188410,0.83316347,2789.9,2788.8,0.13819996]
[1645228188610,0.85618277,2789.4,2788.8,1.16509784]
[1645228188813,0.82638194,2789.4,2788.8,1.16509784]
[1645228189012,0.82638194,2789.4,2789.2,0.00208643]
[1645228190012,1.76406845,2789.4,2788.9,0.8966388]
[1645228190211,1.76406845,2789.4,2789.2,0.00208647]
[1645228190419,1.43593869,2789.4,2789.2,0.89868647]
[1645228190816,0.91840011,2790.0,2789.7,0.18805785]
[1645228191014,1.41665229,2790.0,2789.7,0.18805785]
[1645228191515,1.41665229,2790.0,2789.7,0.19014391]
[1645228191770,1.41665229,2790.0,2789.7,0.14014391]
[1645228192371,1.41665229,2790.0,2789.7,0.13805785]
[1645228192575,1.41665229,2790.0,2789.7,0.14014391]
[1645228193574,1.41665229,2790.0,2789.7,0.13805785]
[1645228193771,1.41665229,2790.0,2789.7,0.14014391]
[1645228194871,1.41665229,2790.0,2789.7,0.13805785]
[1645228195072,1.41665229,2790.0,2789.7,0.14014391]
[1645228195927,1.41665229,2790.0,2789.7,0.13805785]
[1645228196327,1.41665229,2790.0,2789.7,0.14014391]
[1645228196527,1.23542122,2790.0,2789.7,0.14014391]
[1645228197127,1.23542122,2790.0,2789.7,0.13805785]
[1645228197328,1.23542122,2790.0,2789.7,0.14014391]
[1645228197531,3.02884122,2790.0,2789.7,0.14014391]
[1645228197731,0.61702111,2789.9,2789.7,4.391e-05]
[1645228197930,0.31702111,2789.8,2789.7,4.391e-05]
[1645228198429,1.3,2789.9,2788.8,1.36809996]
[1645228198430,0.3,2789.9,2788.8,1.36809996]
[1645228198831,0.89685,2789.6,2788.8,1.36809996]
[1645228199030,2.69064,2789.9,2788.8,0.13819996]
[1645228199269,5.4728641,2790.2,2788.9,1.06333007]
[1645228199270,0.1792,2790.2,2788.9,1.06333007]
[1645228199468,1.1289,2790.3,2788.9,1.06333007]
[1645228199672,1.4289,2790.3,2789.2,0.89652]
[1645228199869,1.4289,2790.3,2789.4,1.5]
[1645228199870,0.3,2790.3,2789.4,1.5]
[1645228200268,0.3,2790.5,2789.4,1.5]
[1645228200668,1.05601263,2789.9,2789.4,1.5]
[1645228201070,1.05601263,2789.9,2789.6,0.00208106]
[1645228201870,1.05601263,2789.9,2789.4,1.5]
[1645228202272,1.05601263,2789.9,2789.6,0.00208106]
[1645228202474,2.55280263,2789.9,2789.6,0.00208106]
[1645228202669,3.44964123,2789.9,2789.6,0.00208106]
[1645228202919,1.0,2789.8,2789.6,0.00208106]
[1645228203117,1.0,2789.8,2789.4,1.5]